fUSD/lending_fUSD_20250120
["ID","MTS","AMOUNT","RATE_DAILY","PERIOD"]
[349650942,1737357059889,-500.0,0.00021247,2]
[349650943,1737357059899,-844.53,0.00021247,2]
[349650944,1737357059909,-872.38,0.00021247,2]
[349650945,1737357059918,-500.0,0.00021247,2]
[349650946,1737357059927,-618.61,0.00021247,2]
[349650947,1737357059937,-500.0,0.00021247,2]
[349650948,1737357059947,-1230.29,0.00021247,2]
[349650949,1737357059956,-943.42,0.00021247,2]
[349650950,1737357059966,-1172.08,0.00021247,2]
[349650951,1737357059975,-1416.41,0.00021247,2]
[349650952,1737357059985,-500.0,0.00021247,2]
[349650953,1737357059995,-500.0,0.00021247,2]
[349650954,1737357060005,-755.21,0.00021247,2]
[349650955,1737357060014,-500.0,0.00021247,2]
[349650956,1737357060024,-500.0,0.00021247,2]
[349650957,1737357060033,-454.87432721,0.00021247,2]
[349650958,1737357060042,-500.0,0.00021247,2]
[349650959,1737357060052,-671.68,0.00021247,2]
[349650960,1737357060063,-500.0,0.00021247,2]
[349650961,1737357060073,-500.0,0.00021247,2]
[349650962,1737357060083,-600.41,0.00021247,2]
[349650963,1737357060092,-956.34,0.00021247,2]
[349650964,1737357060101,-751.01,0.00021247,2]
[349650965,1737357060110,-500.0,0.00021247,2]
[349650966,1737357060123,-560.7,0.00021247,2]
[349650967,1737357060132,-500.0,0.00021247,2]
[349650968,1737357060141,-804.91,0.00021247,2]
[349650969,1737357060150,-500.0,0.00021247,2]
[349650970,1737357060159,-500.0,0.00021247,2]
[349650971,1737357060169,-500.0,0.00021247,2]
[349650972,1737357060178,-855.88,0.00021247,2]
[349650973,1737357060187,-500.0,0.00021247,2]
[349650974,1737357060196,-1440.4,0.00021247,2]
[349650975,1737357060206,-500.0,0.00021247,2]
[349650976,1737357060215,-507.73,0.00021247,2]
[349650977,1737357060224,-598.16,0.00021247,2]
[349650978,1737357060234,-572.44,0.00021247,2]
[349650979,1737357060243,-500.0,0.00021247,2]
[349650980,1737357060253,-891.28,0.00021248,2]
[349650981,1737357060262,-500.0,0.00021248,2]
[349650982,1737357060272,-987.27,0.00021248,2]
[349650983,1737357060281,-687.51,0.00021248,2]
[349650984,1737357060291,-1487.68,0.00021248,2]
[349650985,1737357060300,-945.97,0.00021248,2]
[349650986,1737357060310,-737.44,0.00021248,2]
[349650987,1737357060320,-500.0,0.00021248,2]
[349650988,1737357060329,-914.42,0.00021248,2]
[349650989,1737357060339,-280.81807333,0.00021248,2]
[349650990,1737357060439,-500.0,0.00021248,2]
[349650991,1737357060448,-500.0,0.00021248,2]
[349650992,1737357060457,-500.0,0.00021248,2]
[349650993,1737357060467,-500.0,0.00021248,2]
[349650994,1737357060476,-163.23,0.00021257,2]
[349650995,1737357060485,-510.42089219,0.00021274,2]
[349650996,1737357060494,-162.06759521,0.00021313,2]
[349650997,1737357060503,-154.7715388,0.00021337,2]
[349650998,1737357060512,-510.42089219,0.00021399,2]
[349650999,1737357060522,-1000.0,0.000214,2]
[349651000,1737357060533,-162.06759521,0.00021459,2]
[349651001,1737357060544,-2097.5,0.00021461,2]
[349651002,1737357060554,-1570.97,0.00021518,2]
[349651003,1737357060564,-1230.83,0.00021518,2]
[349651004,1737357060574,-1100.27,0.00021518,2]
[349651005,1737357060583,-1821.37,0.00021518,2]
[349651006,1737357060593,-926.43,0.00021518,2]
[349651007,1737357060602,-2371.35,0.00021518,2]
[349651008,1737357060612,-1721.05,0.00021518,2]
[349651009,1737357060625,-500.0,0.00021518,2]
[349651010,1737357060636,-1890.85,0.00021518,2]
[349651011,1737357060649,-705.04,0.00021518,2]
[349651012,1737357060659,-4155.36,0.00021518,2]
[349651013,1737357060668,-579.46,0.00021518,2]
[349651014,1737357060679,-1302.86,0.00021518,2]
[349651015,1737357060689,-3249.54,0.00021518,2]
[349651016,1737357060699,-515.46,0.00021518,2]
[349651017,1737357060708,-759.93,0.00021518,2]
[349651018,1737357060719,-500.0,0.00021518,2]
[349651019,1737357060730,-880.55,0.00021518,2]
[349651020,1737357060740,-1948.51,0.00021518,2]
[349651021,1737357060750,-845.88,0.00021518,2]
[349651022,1737357060759,-849.87,0.00021518,2]
[349651023,1737357060769,-2519.86,0.00021518,2]
[349651024,1737357060779,-500.0,0.00021518,2]
[349651025,1737357060789,-653.67,0.00021518,2]
[349651026,1737357060800,-4175.32,0.00021519,2]
[349651027,1737357060809,-1121.29,0.00021519,2]
[349651028,1737357060819,-3077.07,0.00021519,2]
[349651029,1737357060830,-1599.794053,0.00021519,2]
[349651030,1737357060840,-1546.78,0.00021519,2]
[349651031,1737357060849,-500.0,0.00021519,2]
[349651032,1737357060859,-472.15,0.00021519,2]
[349651033,1737357060873,-1848.05,0.00021519,2]
[349651034,1737357060882,-500.0,0.00021519,2]
[349651035,1737357060893,-500.0,0.00021519,2]
[349651036,1737357060903,-2198.67,0.00021519,2]
[349651037,1737357060912,-500.0,0.00021519,2]
[349651038,1737357060922,-711.195957,0.00021519,2]
[349651039,1737357060932,-500.0,0.00021519,2]
[349651040,1737357060942,-1636.89,0.00021519,2]
[349651041,1737357060951,-1657.67,0.00021519,2]
[349651042,1737357060960,-500.0,0.00021519,2]
[349651043,1737357060969,-899.53,0.00021519,2]
[349651044,1737357060979,-1178.21,0.00021519,2]
[349651045,1737357060988,-538.92,0.00021519,2]
[349651046,1737357060998,-500.0,0.00021519,2]
[349651047,1737357061007,-500.0,0.00021519,2]
[349651048,1737357061017,-1794.15,0.00021519,2]
[349651049,1737357061026,-812.085689,0.00021519,2]
[349651050,1737357061035,-724.4,0.00021519,2]
[349651051,1737357061045,-812.085689,0.00021519,2]
[349651052,1737357061054,-2149.5,0.00021519,2]
[349651053,1737357061064,-3662.88,0.00021519,2]
[349651054,1737357061085,-3749.8,0.00021519,2]
[349651055,1737357061110,-1070.18,0.00021519,2]
[349651056,1737357061136,-500.0,0.00021519,2]
[349651057,1737357061156,-2622.23,0.00021519,2]
[349651058,1737357061172,-1124.23,0.00021519,2]
[349651059,1737357061193,-5414.11,0.00021519,2]
[349651060,1737357061214,-2203.52,0.00021519,2]
[349651061,1737357061234,-500.0,0.00021519,2]
[349651062,1737357061253,-737.23,0.00021519,2]
[349651063,1737357061272,-1289.34,0.00021519,2]
[349651064,1737357061288,-2270.22,0.00021519,2]
[349651065,1737357061303,-500.0,0.00021519,2]
[349651066,1737357061321,-312.63046804,0.0002152,2]
[349651067,1737357061335,-321.70058883,0.0002152,2]
[349651068,1737357061354,-500.0,0.0002152,2]
[349651069,1737357061374,-471.0,0.0002152,2]
[349651070,1737357061389,-500.0,0.0002152,2]
[349651071,1737357061406,-500.0,0.0002152,2]
[349651072,1737357061424,-616.56,0.0002152,2]
[349651073,1737357061441,-500.0,0.0002152,2]
[349651074,1737357061460,-621.89,0.0002152,2]
[349651075,1737357061478,-500.0,0.0002152,2]
[349651076,1737357061495,-500.0,0.0002152,2]
[349651077,1737357061512,-566.88,0.0002152,2]
[349651078,1737357061527,-500.0,0.0002152,2]
[349651079,1737357061544,-320.07120325,0.0002152,2]
[349651080,1737357061560,-508.35200828,0.0002152,2]
[349651081,1737357061576,-500.0,0.0002152,2]
[349651082,1737357061592,-500.0,0.0002152,2]
[349651083,1737357061609,-500.0,0.0002152,2]
[349651084,1737357061628,-500.0,0.0002152,2]
[349651085,1737357061644,-500.0,0.0002152,2]
[349651086,1737357061660,-500.0,0.0002152,2]
[349651087,1737357061679,-500.0,0.0002152,2]
[349651088,1737357061696,-500.0,0.0002152,2]
[349651089,1737357061711,-597.07,0.0002152,2]
[349651090,1737357061728,-201.46627162,0.0002152,2]
[349651091,1737357061745,-514.41483139,0.0002152,2]
[349651092,1737357061760,-607.75107455,0.0002152,2]
[349651093,1737357061775,-500.0,0.0002152,2]
[349651094,1737357061792,-826.91,0.0002152,2]
[349651095,1737357061809,-500.0,0.0002152,2]
[349651096,1737357061825,-874.42,0.0002152,2]
[349651097,1737357061842,-500.0,0.0002152,2]
[349651098,1737357061858,-500.0,0.0002152,2]
[349651099,1737357061880,-500.0,0.0002152,2]
[349651100,1737357061896,-500.0,0.0002152,2]
[349651101,1737357061912,-500.0,0.0002152,2]
[349651102,1737357061929,-566.29397585,0.0002152,2]
[349651103,1737357061939,-500.0,0.0002152,2]
[349651104,1737357061949,-500.0,0.0002152,2]
[349651105,1737357061959,-500.0,0.0002152,2]
[349651106,1737357061970,-500.0,0.0002152,2]
[349651107,1737357061980,-558.23640813,0.0002152,2]
[349651108,1737357061991,-501.69,0.0002152,2]
[349651109,1737357062000,-588.34,0.0002152,2]
[349651110,1737357062011,-500.0,0.0002152,2]
[349651111,1737357062021,-511.88060007,0.0002152,2]
[349651112,1737357062031,-500.0,0.0002152,2]
[349651113,1737357062040,-500.0,0.0002152,2]
[349651114,1737357062050,-560.99,0.0002152,2]
[349651115,1737357062074,-500.0,0.0002152,2]
[349651116,1737357062089,-500.0,0.0002152,2]
[349651117,1737357062100,-500.0,0.0002152,2]
[349651118,1737357062328,-500.0,0.0002152,2]
[349651119,1737357062344,-500.0,0.0002152,2]
[349651120,1737357062354,-1209.74,0.0002152,2]
[349651121,1737357062367,-298.93034337,0.0002152,2]
[349651122,1737357062376,-500.0,0.0002152,2]
[349651123,1737357062385,-500.0,0.0002152,2]
[349651124,1737357062395,-500.0,0.0002152,2]
[349651125,1737357062404,-996.35,0.0002152,2]
[349651126,1737357062413,-637.57,0.0002152,2]
[349651127,1737357062422,-500.0,0.0002152,2]
[349651128,1737357062431,-500.0,0.0002152,2]
[349651129,1737357062440,-905.83,0.0002152,2]
[349651130,1737357062450,-529.98001785,0.0002152,2]
[349651131,1737357062459,-500.0,0.0002152,2]
[349651132,1737357062469,-1077.47,0.0002152,2]
[349651133,1737357062478,-500.0,0.0002152,2]
[349651134,1737357062488,-554.39,0.0002152,2]
[349651135,1737357062497,-500.0,0.0002152,2]
[349651136,1737357062506,-500.0,0.0002152,2]
[349651137,1737357062515,-906.22,0.0002152,2]
[349651138,1737357062524,-500.0,0.0002152,2]
[349651139,1737357062533,-500.0,0.0002152,2]
[349651140,1737357062543,-308.42775328,0.0002152,2]
[349651141,1737357062552,-500.0,0.0002152,2]
[349651142,1737357062562,-616.92,0.0002152,2]
[349651143,1737357062571,-512.95802833,0.0002152,2]
[349651144,1737357062580,-1216.96,0.0002152,2]
[349651145,1737357062589,-500.0,0.0002152,2]
[349651146,1737357062598,-1234.53,0.0002152,2]
[349651147,1737357062607,-830.7,0.0002152,2]
[349651148,1737357062621,-500.0,0.0002152,2]
[349651149,1737357062631,-500.0,0.0002152,2]
[349651150,1737357062645,-500.0,0.0002152,2]
[349651151,1737357062654,-500.0,0.0002152,2]
[349651152,1737357062664,-1109.16,0.0002152,2]
[349651153,1737357062674,-500.0,0.0002152,2]
[349651154,1737357062685,-608.39625722,0.0002152,2]
[349651155,1737357062695,-1671.15,0.0002152,2]
[349651156,1737357062705,-1002.93,0.0002152,2]
[349651157,1737357062716,-500.0,0.0002152,2]
[349651158,1737357062726,-500.0,0.0002152,2]
[349651159,1737357062736,-500.0,0.0002152,2]
[349651160,1737357062747,-1060.61,0.0002152,2]
[349651161,1737357062756,-530.38,0.0002152,2]
[349651162,1737357062766,-1501.55,0.0002152,2]
[349651163,1737357062776,-1094.93,0.0002152,2]
[349651164,1737357062786,-500.0,0.0002152,2]
[349651165,1737357062796,-694.63,0.0002152,2]
[349651166,1737357062807,-608.95,0.0002152,2]
[349651167,1737357062817,-500.0,0.0002152,2]
[349651168,1737357062827,-500.0,0.0002152,2]
[349651169,1737357062837,-573.88,0.0002152,2]
[349651170,1737357062846,-600.89065823,0.0002152,2]
[349651171,1737357062856,-1791.48,0.0002152,2]
[349651172,1737357062870,-151.0,0.0002152,2]
[349651173,1737357062880,-764.66,0.0002152,2]
[349651174,1737357062891,-500.0,0.0002152,2]
[349651175,1737357062901,-1222.25,0.0002152,2]
[349651176,1737357062912,-2337.43,0.0002152,2]
[349651177,1737357062923,-806.28,0.0002152,2]
[349651178,1737357062933,-500.0,0.0002152,2]
[349651179,1737357062943,-1684.46,0.0002152,2]
[349651180,1737357062954,-3376.09,0.0002152,2]
[349651181,1737357062963,-741.22,0.0002152,2]
[349651182,1737357062974,-3636.06,0.0002152,2]
[349651183,1737357062984,-2562.36,0.0002152,2]
[349651184,1737357062993,-6332.1,0.0002152,2]
[349651185,1737357063003,-500.0,0.0002152,2]
[349651186,1737357063012,-1118.19,0.0002152,2]
[349651187,1737357063022,-691.41,0.0002152,2]
[349651188,1737357063031,-500.0,0.0002152,2]
[349651189,1737357063040,-5034.92,0.0002152,2]
[349651190,1737357063050,-500.0,0.0002152,2]
[349651191,1737357063060,-669.71,0.0002152,2]
[349651192,1737357063070,-753.19,0.0002152,2]
[349651193,1737357063080,-500.0,0.0002152,2]
[349651194,1737357063089,-500.0,0.0002152,2]
[349651195,1737357063099,-428.83544377,0.0002152,2]
[349651196,1737357063109,-500.0,0.0002152,2]
[349651197,1737357063123,-1285.62,0.0002152,2]
[349651198,1737357063134,-783.34,0.0002152,2]
[349651199,1737357063144,-6472.48,0.0002152,2]
[349651200,1737357063154,-2685.84,0.0002152,2]
[349651201,1737357063164,-836.18,0.0002152,2]
[349651202,1737357063174,-500.0,0.0002152,2]
[349651203,1737357063184,-233.84639441,0.0002152,2]
[349651204,1737357063194,-2128.21,0.0002152,2]
[349651205,1737357063204,-6460.5,0.0002152,2]
[349651206,1737357063214,-618.51,0.0002152,2]
[349651207,1737357063225,-500.0,0.0002152,2]
[349651208,1737357063235,-500.0,0.0002152,2]
[349651209,1737357063245,-1585.57,0.0002152,2]
[349651210,1737357063256,-2760.19,0.0002152,2]
[349651211,1737357063266,-500.0,0.0002152,2]
[349651212,1737357063277,-500.0,0.0002152,2]
[349651213,1737357063287,-984.05,0.0002152,2]
[349651214,1737357063297,-1906.35,0.0002152,2]
[349651215,1737357063307,-500.0,0.0002152,2]
[349651216,1737357063316,-500.0,0.0002152,2]
[349651217,1737357063326,-500.0,0.0002152,2]
[349651218,1737357063336,-1499.5,0.0002152,2]
[349651219,1737357063345,-500.0,0.0002152,2]
[349651220,1737357063355,-500.0,0.0002152,2]
[349651221,1737357063365,-2628.34,0.0002152,2]
[349651222,1737357063376,-500.0,0.0002152,2]
[349651223,1737357063385,-520.39,0.0002152,2]
[349651224,1737357063395,-1299.48,0.0002152,2]
[349651225,1737357063405,-953.14,0.0002152,2]
[349651226,1737357063414,-500.0,0.0002152,2]
[349651227,1737357063424,-500.0,0.0002152,2]
[349651228,1737357063434,-812.085689,0.0002152,2]
[349651229,1737357063444,-500.0,0.0002152,2]
[349651230,1737357063455,-1959.47,0.0002152,2]
[349651231,1737357063465,-812.085689,0.0002152,2]
[349651232,1737357063476,-638.46,0.0002152,2]
[349651233,1737357063488,-1350.25,0.0002152,2]
[349651234,1737357063498,-500.0,0.0002152,2]
[349651235,1737357063507,-500.0,0.0002152,2]
[349651236,1737357063517,-715.54,0.0002152,2]
[349651237,1737357063527,-751.72,0.0002152,2]
[349651238,1737357063537,-1867.69,0.0002152,2]
[349651239,1737357063547,-500.0,0.0002152,2]
[349651240,1737357063556,-500.0,0.0002152,2]
[349651241,1737357063566,-500.0,0.0002152,2]
[349651242,1737357063576,-3983.13,0.0002152,2]
[349651243,1737357063586,-500.0,0.0002152,2]
[349651244,1737357063597,-500.0,0.0002152,2]
[349651245,1737357063607,-882.09,0.0002152,2]
[349651246,1737357063620,-306.21,0.0002152,2]
[349651247,1737357063630,-500.0,0.0002152,2]
[349651248,1737357063643,-977.81,0.0002152,2]
[349651249,1737357063653,-1799.96,0.0002152,2]
[349651250,1737357063665,-329.08786137,0.0002152,2]
[349651251,1737357063677,-500.0,0.0002152,2]
[349651252,1737357063687,-500.0,0.0002152,2]
[349651253,1737357063697,-500.0,0.0002152,2]
[349651254,1737357063709,-153.62516247,0.0002152,2]
[349651255,1737357063719,-313.74,0.0002152,2]
[349651256,1737357063729,-500.0,0.0002152,2]
[349651257,1737357063739,-491.63,0.0002152,2]
[349651258,1737357063750,-988.73,0.0002152,2]
[349651259,1737357063759,-500.0,0.0002152,2]
[349651260,1737357063769,-500.0,0.0002152,2]
[349651261,1737357063779,-679.55,0.0002152,2]
[349651262,1737357063790,-775.38,0.0002152,2]
[349651263,1737357063800,-882.11,0.0002152,2]
[349651264,1737357063809,-1067.99,0.0002152,2]
[349651265,1737357063820,-500.0,0.0002152,2]
[349651266,1737357063831,-500.0,0.0002152,2]
[349651267,1737357063841,-1944.06,0.0002152,2]
[349651268,1737357063852,-500.0,0.0002152,2]
[349651269,1737357063863,-500.0,0.00021521,2]
[349651270,1737357063883,-500.0,0.00021521,2]
[349651271,1737357063896,-500.0,0.00021521,2]
[349651272,1737357063907,-571.87,0.00021521,2]
[349651273,1737357063918,-595.96,0.00021521,2]
[349651274,1737357063929,-500.0,0.00021521,2]
[349651275,1737357063941,-500.0,0.00021521,2]
[349651276,1737357063952,-500.0,0.00021521,2]
[349651277,1737357063962,-500.0,0.00021521,2]
[349651278,1737357063973,-500.0,0.00021521,2]
[349651279,1737357063983,-500.0,0.00021521,2]
[349651280,1737357063993,-500.0,0.00021521,2]
[349651281,1737357064004,-500.0,0.00021521,2]
[349651282,1737357064015,-500.0,0.00021521,2]
[349651283,1737357064025,-600.27,0.00021521,2]
[349651284,1737357064035,-500.0,0.00021521,2]
[349651285,1737357064046,-500.0,0.00021521,2]
[349651286,1737357064057,-567.42,0.00021521,2]
[349651287,1737357064068,-500.0,0.00021521,2]
[349651288,1737357064079,-500.0,0.00021521,2]
[349651289,1737357064090,-500.0,0.00021521,2]
[349651290,1737357064100,-500.0,0.00021521,2]
[349651291,1737357064110,-500.0,0.00021521,2]
[349651292,1737357064127,-500.0,0.00021521,2]
[349651293,1737357064137,-500.0,0.00021521,2]
[349651294,1737357064148,-500.0,0.00021521,2]
[349651295,1737357064158,-500.0,0.00021521,2]
[349651296,1737357064169,-500.0,0.00021521,2]
[349651297,1737357064179,-500.0,0.00021521,2]
[349651298,1737357064190,-1241.57,0.00021521,2]
[349651299,1737357064200,-819.46,0.00021521,2]
[349651300,1737357064211,-553.61,0.00021521,2]
[349651301,1737357064222,-500.0,0.00021521,2]
[349651302,1737357064232,-555.22,0.00021521,2]
[349651303,1737357064242,-1069.58,0.00021521,2]
[349651304,1737357064252,-913.82,0.00021521,2]
[349651305,1737357064262,-610.64,0.00021521,2]
[349651306,1737357064272,-404.58928747,0.00021521,2]
[349651307,1737357064282,-728.27,0.00021521,2]
[349651308,1737357064291,-500.0,0.00021521,2]
[349651309,1737357064301,-1109.51,0.00021521,2]
[349651310,1737357064312,-504.09,0.00021521,2]
[349651311,1737357064323,-500.0,0.00021521,2]
[349651312,1737357064332,-500.0,0.00021521,2]
[349651313,1737357064342,-500.0,0.00021521,2]
[349651314,1737357064352,-500.0,0.00021521,2]
[349651315,1737357064363,-431.68684009,0.00021521,2]
[349651316,1737357064380,-500.0,0.00021521,2]
[349651317,1737357064391,-500.0,0.00021521,2]
[349651318,1737357064401,-500.0,0.00021521,2]
[349651319,1737357064412,-500.0,0.00021521,2]
[349651320,1737357064421,-500.0,0.00021521,2]
[349651321,1737357064432,-500.0,0.00021521,2]
[349651322,1737357064441,-500.0,0.00021521,2]
[349651323,1737357064452,-500.0,0.00021521,2]
[349651324,1737357064462,-1382.29,0.00021521,2]
[349651325,1737357064471,-1723.55,0.00021521,2]
[349651326,1737357064482,-1814.87,0.00021521,2]
[349651327,1737357064492,-500.0,0.00021521,2]
[349651328,1737357064502,-500.0,0.00021521,2]
[349651329,1737357064513,-500.0,0.00021521,2]
[349651330,1737357064523,-844.53,0.00021521,2]
[349651331,1737357064533,-872.38,0.00021521,2]
[349651332,1737357064543,-500.0,0.00021521,2]
[349651333,1737357064553,-618.61,0.00021521,2]
[349651334,1737357064564,-500.0,0.00021521,2]
[349651335,1737357064574,-1230.29,0.00021521,2]
[349651336,1737357064584,-943.42,0.00021521,2]
[349651337,1737357064593,-1172.08,0.00021521,2]
[349651338,1737357064603,-1416.41,0.00021521,2]
[349651339,1737357064613,-500.0,0.00021521,2]
[349651340,1737357064627,-755.21,0.00021521,2]
[349651341,1737357064640,-151.0,0.00021521,2]
[349651342,1737357064650,-500.0,0.00021521,2]
[349651343,1737357064660,-500.0,0.00021521,2]
[349651344,1737357064669,-671.68,0.00021521,2]
[349651345,1737357064680,-516.21243224,0.00021521,2]
[349651346,1737357064690,-500.0,0.00021521,2]
[349651347,1737357064699,-600.41,0.00021521,2]
[349651348,1737357064709,-956.34,0.00021521,2]
[349651349,1737357064718,-751.01,0.00021521,2]
[349651350,1737357064727,-500.0,0.00021521,2]
[349651351,1737357064737,-560.7,0.00021521,2]
[349651352,1737357064747,-500.0,0.00021521,2]
[349651353,1737357064756,-804.91,0.00021521,2]
[349651354,1737357064766,-500.0,0.00021521,2]
[349651355,1737357064777,-500.0,0.00021521,2]
[349651356,1737357064787,-500.0,0.00021521,2]
[349651357,1737357064796,-855.88,0.00021521,2]
[349651358,1737357064806,-1440.4,0.00021521,2]
[349651359,1737357064815,-500.0,0.00021521,2]
[349651360,1737357064825,-507.73,0.00021521,2]
[349651361,1737357064835,-598.16,0.00021521,2]
[349651362,1737357064844,-572.44,0.00021521,2]
[349651363,1737357064853,-500.0,0.00021521,2]
[349651364,1737357064863,-151.0,0.00021522,2]
[349651365,1737357064880,-891.28,0.00021522,2]
[349651366,1737357064891,-500.0,0.00021522,2]
[349651367,1737357064900,-987.27,0.00021522,2]
[349651368,1737357064911,-687.51,0.00021522,2]
[349651369,1737357064920,-1487.68,0.00021522,2]
[349651370,1737357064930,-945.97,0.00021522,2]
[349651371,1737357064940,-737.44,0.00021522,2]
[349651372,1737357064950,-500.0,0.00021522,2]
[349651373,1737357064960,-914.42,0.00021522,2]
[349651374,1737357064970,-500.0,0.00021522,2]
[349651375,1737357064980,-500.0,0.00021522,2]
[349651376,1737357064990,-259.06,0.00021522,2]
[349651377,1737357064999,-500.0,0.00021522,2]
[349651378,1737357065009,-510.42089219,0.00021524,2]
[349651379,1737357065019,-150.0,0.00021577,2]
[349651380,1737357065030,-567.0,0.00021577,2]
[349651381,1737357065041,-1862.0,0.00021577,2]
[349651382,1737357065050,-906.0,0.00021577,2]
[349651383,1737357065060,-781.0,0.00021577,2]
[349651384,1737357065070,-1260.0,0.00021577,2]
[349651385,1737357065080,-2946.0,0.00021577,2]
[349651386,1737357065089,-150.0,0.00021577,2]
[349651387,1737357065099,-537.0,0.00021577,2]
[349651388,1737357065109,-3980.0,0.00021577,2]
[349651389,1737357065124,-150.0,0.000216,2]
[349651390,1737357065262,-429.86318034,0.00021604,2]
[349651391,1737357065278,-162.06759521,0.00021606,2]
[349651392,1737357065290,-510.42089219,0.0002165,2]
[349651393,1737357065301,-812.085689,0.00021695,2]
[349651394,1737357065312,-812.085689,0.00021695,2]
[349651395,1737357065323,-41116.9593,0.00021695,2]
[349651396,1737357065334,-151.0,0.0002172,2]
[349651397,1737357065344,-500.0,0.00021725,2]
[349651398,1737357065355,-1000.0,0.00021738,2]
[349651399,1737357065364,-162.06759521,0.00021753,2]
[349651400,1737357065381,-500.941152,0.00021773,2]
[349651401,1737357065391,-510.42089219,0.00021775,2]
[349651402,1737357065401,-1570.97,0.00021792,2]
[349651403,1737357065412,-1230.83,0.00021792,2]
[349651404,1737357065421,-1100.27,0.00021792,2]
[349651405,1737357065431,-1821.37,0.00021792,2]
[349651406,1737357065440,-926.43,0.00021792,2]
[349651407,1737357065450,-2371.35,0.00021792,2]
[349651408,1737357065460,-1721.05,0.00021792,2]
[349651409,1737357065470,-500.0,0.00021792,2]
[349651410,1737357065480,-1890.85,0.00021792,2]
[349651411,1737357065491,-705.04,0.00021792,2]
[349651412,1737357065501,-4155.36,0.00021792,2]
[349651413,1737357065511,-579.46,0.00021792,2]
[349651414,1737357065520,-1302.86,0.00021792,2]
[349651415,1737357065530,-3249.54,0.00021792,2]
[349651416,1737357065540,-515.46,0.00021792,2]
[349651417,1737357065550,-759.93,0.00021792,2]
[349651418,1737357065559,-500.0,0.00021792,2]
[349651419,1737357065568,-880.55,0.00021792,2]
[349651420,1737357065578,-1948.51,0.00021792,2]
[349651421,1737357065588,-845.88,0.00021792,2]
[349651422,1737357065600,-849.87,0.00021792,2]
[349651423,1737357065609,-2519.86,0.00021792,2]
[349651424,1737357065624,-500.0,0.00021792,2]
[349651425,1737357065634,-653.67,0.00021792,2]
[349651426,1737357065646,-4175.32,0.00021793,2]
[349651427,1737357065655,-1121.29,0.00021793,2]
[349651428,1737357065664,-3077.07,0.00021793,2]
[349651429,1737357065675,-1599.794053,0.00021793,2]
[349651430,1737357065687,-1546.78,0.00021793,2]
[349651431,1737357065698,-500.0,0.00021793,2]
[349651432,1737357065707,-1848.05,0.00021793,2]
[349651433,1737357065717,-500.0,0.00021793,2]
[349651434,1737357065728,-500.0,0.00021793,2]
[349651435,1737357065738,-2198.67,0.00021793,2]
[349651436,1737357065749,-500.0,0.00021793,2]
[349651437,1737357065758,-711.195957,0.00021793,2]
[349651438,1737357065767,-500.0,0.00021793,2]
[349651439,1737357065777,-1636.89,0.00021793,2]
[349651440,1737357065787,-1657.67,0.00021793,2]
[349651441,1737357065798,-500.0,0.00021793,2]